[Event "Titled Tuesday Blitz June 28 Early 2022"]
[White "Araujo Sanchez, Josue"]
[Black "Warmerdam, Max"]
[WhiteFideId "6416896"]
[BlackFideId "1048104"]
[WhiteElo "2339"]
[BlackElo "2537"]
[Result "1-0"]
[Round "10"]
[TimeControl "180+1"]
[Date "2022.06.28"]
[WhiteClock "0:00:09"]
[BlackClock "0:00:06"]

1. Nf3 {[%clk 0:03:00]}  Nf6 {[%clk 0:02:59]} 2. b3 {[%clk 0:03:00]}  g6 {[%clk 0:02:59]} 3. Bb2 {[%clk 0:03:01]}  Bg7 {[%clk 0:03:00]} 4. c4 {[%clk 0:03:02]}  O-O {[%clk 0:02:57]} 5. e3 {[%clk 0:03:03]}  c5 {[%clk 0:02:56]} 6. Be2 {[%clk 0:03:03]}  b6 {[%clk 0:02:57]} 7. O-O {[%clk 0:03:02]}  Bb7 {[%clk 0:02:57]} 8. d4 {[%clk 0:03:03]}  e6 {[%clk 0:02:58]} 9. dxc5 {[%clk 0:03:03]}  bxc5 {[%clk 0:02:59]} 10. Nc3 {[%clk 0:03:03]}  Qe7 {[%clk 0:02:57]} 11. Qd2 {[%clk 0:03:03]}  d6 {[%clk 0:02:55]} 12. Rfd1 {[%clk 0:03:03]}  Rd8 {[%clk 0:02:55]} 13. Rac1 {[%clk 0:03:03]}  Nc6 {[%clk 0:02:54]} 14. Qc2 {[%clk 0:02:58]}  a6 {[%clk 0:02:54]} 15. Rd2 {[%clk 0:02:57]}  h6 {[%clk 0:02:51]} 16. Rcd1 {[%clk 0:02:56]}  g5 {[%clk 0:02:52]} 17. a3 {[%clk 0:02:51]}  Rab8 {[%clk 0:02:51]} 18. Bd3 {[%clk 0:02:44]}  Ba8 {[%clk 0:02:51]} 19. Ne4 {[%clk 0:02:41]}  Nxe4 {[%clk 0:02:45]} 20. Bxe4 {[%clk 0:02:42]}  Bxb2 {[%clk 0:02:39]} 21. Bxc6 {[%clk 0:02:41]}  Bxa3 {[%clk 0:02:23]} 22. Bxa8 {[%clk 0:02:40]}  Rxa8 {[%clk 0:02:24]} 23. h4 {[%clk 0:02:37]}  Bb4 {[%clk 0:02:23]} 24. Rd3 {[%clk 0:02:32]}  g4 {[%clk 0:02:20]} 25. Nh2 {[%clk 0:02:32]}  h5 {[%clk 0:02:20]} 26. e4 {[%clk 0:02:31]}  Ba5 {[%clk 0:02:15]} 27. Qe2 {[%clk 0:02:26]}  Qxh4 {[%clk 0:02:10]} 28. Rxd6 {[%clk 0:02:22]}  Rxd6 {[%clk 0:02:09]} 29. Rxd6 {[%clk 0:02:23]}  Bc7 {[%clk 0:02:01]} 30. g3 {[%clk 0:02:21]}  Qe7 {[%clk 0:02:00]} 31. Rd3 {[%clk 0:02:17]}  Rd8 {[%clk 0:02:00]} 32. Rxd8+ {[%clk 0:02:13]}  Qxd8 {[%clk 0:01:59]} 33. Qe3 {[%clk 0:02:12]}  Qd1+ {[%clk 0:01:04]} 34. Kg2 {[%clk 0:02:10]}  Qd4 {[%clk 0:01:03]} 35. Qg5+ {[%clk 0:02:03]}  Kf8 {[%clk 0:01:01]} 36. Qh6+ {[%clk 0:01:54]}  Ke8 {[%clk 0:00:58]} 37. Qxh5 {[%clk 0:01:52]}  Qxe4+ {[%clk 0:00:58]} 38. Kg1 {[%clk 0:01:52]}  Qb1+ {[%clk 0:00:48]} 39. Kg2 {[%clk 0:01:50]}  Qxb3 {[%clk 0:00:40]} 40. Qxc5 {[%clk 0:01:46]}  Qb7+ {[%clk 0:00:40]} 41. Kg1 {[%clk 0:01:45]}  f5 {[%clk 0:00:39]} 42. Qd4 {[%clk 0:01:40]}  Qb1+ {[%clk 0:00:30]} 43. Nf1 {[%clk 0:01:38]}  Qe4 {[%clk 0:00:22]} 44. Qa7 {[%clk 0:01:38]}  Qc6 {[%clk 0:00:21]} 45. Qd4 {[%clk 0:01:37]}  Bb6 {[%clk 0:00:20]} 46. Qh8+ {[%clk 0:01:36]}  Kd7 {[%clk 0:00:20]} 47. Qg7+ {[%clk 0:01:35]}  Kc8 {[%clk 0:00:20]} 48. Qf8+ {[%clk 0:01:32]}  Kb7 {[%clk 0:00:20]} 49. Qf7+ {[%clk 0:01:31]}  Kc8 {[%clk 0:00:19]} 50. Qf8+ {[%clk 0:01:31]}  Kc7 {[%clk 0:00:20]} 51. Qf7+ {[%clk 0:01:30]}  Qd7 {[%clk 0:00:20]} 52. Qf8 {[%clk 0:01:23]}  Qd6 {[%clk 0:00:19]} 53. Qf7+ {[%clk 0:01:22]}  Kc6 {[%clk 0:00:19]} 54. Qe8+ {[%clk 0:01:22]}  Kc5 {[%clk 0:00:15]} 55. Qa4 {[%clk 0:01:21]}  Kd4 {[%clk 0:00:13]} 56. Qxa6 {[%clk 0:01:15]}  Qc5 {[%clk 0:00:13]} 57. Qa1+ {[%clk 0:01:07]}  Kxc4 {[%clk 0:00:12]} 58. Qa2+ {[%clk 0:01:05]}  Kb5 {[%clk 0:00:11]} 59. Qb3+ {[%clk 0:01:03]}  Ka6 {[%clk 0:00:11]} 60. Qa4+ {[%clk 0:00:58]}  Kb7 {[%clk 0:00:11]} 61. Qd7+ {[%clk 0:00:58]}  Kb8 {[%clk 0:00:12]} 62. Qe8+ {[%clk 0:00:57]}  Kc7 {[%clk 0:00:12]} 63. Qf7+ {[%clk 0:00:55]}  Kd8 {[%clk 0:00:11]} 64. Qg8+ {[%clk 0:00:48]}  Kd7 {[%clk 0:00:12]} 65. Qg7+ {[%clk 0:00:48]}  Qe7 {[%clk 0:00:11]} 66. Qb2 {[%clk 0:00:47]}  Qd6 {[%clk 0:00:11]} 67. Qb5+ {[%clk 0:00:46]}  Ke7 {[%clk 0:00:11]} 68. Qb2 {[%clk 0:00:46]}  Bc5 {[%clk 0:00:10]} 69. Qg7+ {[%clk 0:00:45]}  Kd8 {[%clk 0:00:11]} 70. Qh8+ {[%clk 0:00:45]}  Kd7 {[%clk 0:00:11]} 71. Qg7+ {[%clk 0:00:44]}  Kc6 {[%clk 0:00:12]} 72. Qb2 {[%clk 0:00:42]}  Qd5 {[%clk 0:00:11]} 73. Qc2 {[%clk 0:00:39]}  Qf3 {[%clk 0:00:11]} 74. Qa2 {[%clk 0:00:36]}  Kd6 {[%clk 0:00:10]} 75. Qd2+ {[%clk 0:00:33]}  Ke7 {[%clk 0:00:09]} 76. Qg5+ {[%clk 0:00:31]}  Kd7 {[%clk 0:00:09]} 77. Qg7+ {[%clk 0:00:29]}  Kc6 {[%clk 0:00:09]} 78. Qb2 {[%clk 0:00:30]}  e5 {[%clk 0:00:09]} 79. Qa2 {[%clk 0:00:20]}  Kd6 {[%clk 0:00:08]} 80. Qa6+ {[%clk 0:00:18]}  Qc6 {[%clk 0:00:08]} 81. Qd3+ {[%clk 0:00:17]}  Ke6 {[%clk 0:00:08]} 82. Ne3 {[%clk 0:00:17]}  Bxe3 {[%clk 0:00:06]} 83. Qxe3 {[%clk 0:00:18]}  Qc4 {[%clk 0:00:05]} 84. Qh6+ {[%clk 0:00:17]}  Kd5 {[%clk 0:00:06]} 85. Qh7 {[%clk 0:00:15]}  Ke4 {[%clk 0:00:06]} 86. Qb7+ {[%clk 0:00:14]}  Qd5 {[%clk 0:00:06]} 87. Qb1+ {[%clk 0:00:13]}  Qd3 {[%clk 0:00:06]} 88. Qb4+ {[%clk 0:00:13]}  Kd5 {[%clk 0:00:07]} 89. Qb7+ {[%clk 0:00:12]}  Ke6 {[%clk 0:00:06]} 90. Qc8+ {[%clk 0:00:12]}  Qd7 {[%clk 0:00:07]} 91. Qg8+ {[%clk 0:00:11]}  Kd6 {[%clk 0:00:07]} 92. Qg6+ {[%clk 0:00:11]}  Kd5 {[%clk 0:00:07]} 93. Qg8+ {[%clk 0:00:11]}  Kd4 {[%clk 0:00:08]} 94. Qb3 {[%clk 0:00:10]}  Qc6 {[%clk 0:00:07]} 95. Qe3+ {[%clk 0:00:10]}  Kd5 {[%clk 0:00:07]} 96. Qd2+ {[%clk 0:00:10]}  Ke6 {[%clk 0:00:08]} 97. Qh6+ {[%clk 0:00:10]}  Kd7 {[%clk 0:00:08]} 98. Qh7+ {[%clk 0:00:09]}  Ke6 {[%clk 0:00:06]} 99. Qg6+ {[%clk 0:00:09]}  Kd5 {[%clk 0:00:06]} 100. Qxf5 {[%clk 0:00:09]}  Qc1+ {[%clk 0:00:06]} 101. Kg2 {[%clk 0:00:09]}  Qd1 {[%clk 0:00:06]} 102. Qd7+ {[%clk 0:00:09]} 1-0


[Site "https://www.chess.com"]

[Event "Titled Tuesday Blitz June 28 Early 2022"]
[White "Averjanov, Alexey"]
[Black "Khamdamova, Afruza"]
[WhiteFideId "14109867"]
[BlackFideId "14210444"]
[WhiteElo "2682"]
[BlackElo "1660"]
[Result "1-0"]
[Round "10"]
[TimeControl "180+1"]
[Date "2022.06.28"]
[WhiteClock "0:00:55"]
[BlackClock "0:00:08"]

1. d4 {[%clk 0:02:59]}  Nf6 {[%clk 0:02:59]} 2. c4 {[%clk 0:02:59]}  e6 {[%clk 0:02:57]} 3. Nf3 {[%clk 0:02:59]}  d5 {[%clk 0:02:57]} 4. e3 {[%clk 0:02:59]}  Be7 {[%clk 0:02:56]} 5. Nbd2 {[%clk 0:02:58]}  O-O {[%clk 0:02:55]} 6. Bd3 {[%clk 0:02:58]}  c5 {[%clk 0:02:55]} 7. b3 {[%clk 0:02:57]}  cxd4 {[%clk 0:02:55]} 8. exd4 {[%clk 0:02:58]}  Nc6 {[%clk 0:02:54]} 9. Bb2 {[%clk 0:02:57]}  b6 {[%clk 0:02:52]} 10. O-O {[%clk 0:02:57]}  Bb7 {[%clk 0:02:52]} 11. Qe2 {[%clk 0:02:56]}  Rc8 {[%clk 0:02:51]} 12. Rac1 {[%clk 0:02:55]}  Nb4 {[%clk 0:02:49]} 13. Bb1 {[%clk 0:02:49]}  dxc4 {[%clk 0:02:46]} 14. bxc4 {[%clk 0:02:48]}  Ba6 {[%clk 0:02:43]} 15. Rfd1 {[%clk 0:02:45]}  Nbd5 {[%clk 0:02:35]} 16. Ne5 {[%clk 0:02:40]}  Nf4 {[%clk 0:02:28]} 17. Qf3 {[%clk 0:02:38]}  Ng6 {[%clk 0:02:23]} 18. Nc6 {[%clk 0:02:36]}  Qd7 {[%clk 0:02:14]} 19. Nxe7+ {[%clk 0:02:34]}  Qxe7 {[%clk 0:02:11]} 20. Bd3 {[%clk 0:02:23]}  Rfd8 {[%clk 0:02:10]} 21. g3 {[%clk 0:02:19]}  Bb7 {[%clk 0:02:09]} 22. Qe2 {[%clk 0:02:15]}  Ba8 {[%clk 0:02:04]} 23. Ne4 {[%clk 0:02:10]}  Qb7 {[%clk 0:02:00]} 24. f3 {[%clk 0:02:09]}  Ne8 {[%clk 0:01:46]} 25. h4 {[%clk 0:02:05]}  Ne7 {[%clk 0:01:43]} 26. Kg2 {[%clk 0:02:03]}  Nd6 {[%clk 0:01:42]} 27. Nxd6 {[%clk 0:01:58]}  Rxd6 {[%clk 0:01:41]} 28. Be4 {[%clk 0:01:59]}  Qd7 {[%clk 0:01:36]} 29. Bxa8 {[%clk 0:01:54]}  Rxa8 {[%clk 0:01:35]} 30. Rd2 {[%clk 0:01:49]}  Rc8 {[%clk 0:01:34]} 31. Rcd1 {[%clk 0:01:46]}  Qc6 {[%clk 0:01:29]} 32. d5 {[%clk 0:01:38]}  Qxc4 {[%clk 0:01:07]} 33. Qe5 {[%clk 0:01:38]}  Nf5 {[%clk 0:01:00]} 34. Rc1 {[%clk 0:01:37]}  Qxc1 {[%clk 0:00:53]} 35. Bxc1 {[%clk 0:01:38]}  Rxc1 {[%clk 0:00:51]} 36. g4 {[%clk 0:01:31]}  f6 {[%clk 0:00:50]} 37. Qf4 {[%clk 0:01:27]}  Nxh4+ {[%clk 0:00:45]} 38. Kf2 {[%clk 0:01:19]}  e5 {[%clk 0:00:37]} 39. Qb4 {[%clk 0:01:18]}  Rd7 {[%clk 0:00:36]} 40. Qa4 {[%clk 0:01:13]}  Rcc7 {[%clk 0:00:33]} 41. d6 {[%clk 0:01:13]}  Rb7 {[%clk 0:00:32]} 42. Qc4+ {[%clk 0:01:10]}  Kf8 {[%clk 0:00:30]} 43. Qc8+ {[%clk 0:01:10]}  Kf7 {[%clk 0:00:29]} 44. Qxb7 {[%clk 0:01:09]}  Rxb7 {[%clk 0:00:29]} 45. d7 {[%clk 0:01:10]}  Rxd7 {[%clk 0:00:28]} 46. Rxd7+ {[%clk 0:01:10]}  Kf8 {[%clk 0:00:24]} 47. Rxa7 {[%clk 0:01:10]}  Ng6 {[%clk 0:00:23]} 48. Rb7 {[%clk 0:01:06]}  Nf4 {[%clk 0:00:22]} 49. Rxb6 {[%clk 0:01:06]}  Nd3+ {[%clk 0:00:20]} 50. Ke3 {[%clk 0:01:04]}  Nc5 {[%clk 0:00:18]} 51. Rc6 {[%clk 0:01:04]}  Nd7 {[%clk 0:00:13]} 52. a4 {[%clk 0:00:59]}  Ke7 {[%clk 0:00:12]} 53. a5 {[%clk 0:00:58]}  Nb8 {[%clk 0:00:12]} 54. Rc7+ {[%clk 0:00:58]}  Kd6 {[%clk 0:00:11]} 55. Rb7 {[%clk 0:00:55]}  Nc6 {[%clk 0:00:08]} 56. a6 {[%clk 0:00:55]} 1-0


[Site "https://www.chess.com"]

[Event "Titled Tuesday Blitz June 28 Early 2022"]
[White "Bettalli, Francesco"]
[Black "Estrada Nieto, Julian"]
[WhiteFideId "2816453"]
[BlackFideId "5101018"]
[WhiteElo "2216"]
[BlackElo "2252"]
[Result "0-1"]
[Round "10"]
[TimeControl "180+1"]
[Date "2022.06.28"]
[WhiteClock "0:00:09"]
[BlackClock "0:00:04"]

1. d4 {[%clk 0:03:00]}  d5 {[%clk 0:02:46]} 2. Nc3 {[%clk 0:02:56]}  Nf6 {[%clk 0:02:45]} 3. Bf4 {[%clk 0:02:48]}  Bf5 {[%clk 0:02:43]} 4. f3 {[%clk 0:02:30]}  e6 {[%clk 0:02:42]} 5. g4 {[%clk 0:02:29]}  Bg6 {[%clk 0:02:42]} 6. h4 {[%clk 0:02:28]}  h6 {[%clk 0:02:40]} 7. Qd2 {[%clk 0:02:24]}  Bb4 {[%clk 0:02:39]} 8. a3 {[%clk 0:02:24]}  Bd6 {[%clk 0:02:29]} 9. O-O-O {[%clk 0:02:23]}  Nbd7 {[%clk 0:02:22]} 10. Bg2 {[%clk 0:02:20]}  Bxf4 {[%clk 0:02:19]} 11. Qxf4 {[%clk 0:02:20]}  c6 {[%clk 0:02:19]} 12. e4 {[%clk 0:02:19]}  Nb6 {[%clk 0:02:12]} 13. Nge2 {[%clk 0:02:16]}  Nc4 {[%clk 0:02:11]} 14. h5 {[%clk 0:02:14]}  Bh7 {[%clk 0:02:09]} 15. e5 {[%clk 0:02:14]}  Nd7 {[%clk 0:02:04]} 16. a4 {[%clk 0:02:10]}  Qb6 {[%clk 0:01:56]} 17. b3 {[%clk 0:02:10]}  Na3 {[%clk 0:01:52]} 18. Rd2 {[%clk 0:01:56]}  Qb4 {[%clk 0:01:24]} 19. Qe3 {[%clk 0:01:41]}  Nb6 {[%clk 0:01:16]} 20. Kd1 {[%clk 0:01:16]}  O-O-O {[%clk 0:01:04]} 21. f4 {[%clk 0:01:14]}  Bxc2+ {[%clk 0:00:57]} 22. Rxc2 {[%clk 0:01:11]}  Qxb3 {[%clk 0:00:57]} 23. Qc1 {[%clk 0:01:11]}  Nbc4 {[%clk 0:00:55]} 24. Rh3 {[%clk 0:01:10]}  c5 {[%clk 0:00:38]} 25. Nb5 {[%clk 0:01:00]}  Qxc2+ {[%clk 0:00:30]} 26. Qxc2 {[%clk 0:01:00]}  Nxc2 {[%clk 0:00:30]} 27. Kxc2 {[%clk 0:01:01]}  a6 {[%clk 0:00:29]} 28. Nbc3 {[%clk 0:00:57]}  cxd4 {[%clk 0:00:27]} 29. Nxd4 {[%clk 0:00:57]}  Kb8 {[%clk 0:00:27]} 30. Bf1 {[%clk 0:00:55]}  Rc8 {[%clk 0:00:27]} 31. Bxc4 {[%clk 0:00:49]}  Rxc4 {[%clk 0:00:27]} 32. Kb3 {[%clk 0:00:49]}  Rhc8 {[%clk 0:00:27]} 33. Rd3 {[%clk 0:00:50]}  Ka7 {[%clk 0:00:23]} 34. f5 {[%clk 0:00:49]}  Re8 {[%clk 0:00:20]} 35. f6 {[%clk 0:00:35]}  gxf6 {[%clk 0:00:19]} 36. exf6 {[%clk 0:00:36]}  Rg8 {[%clk 0:00:19]} 37. Nce2 {[%clk 0:00:33]}  Rxg4 {[%clk 0:00:18]} 38. Nf3 {[%clk 0:00:24]}  Rxa4 {[%clk 0:00:16]} 39. Ne5 {[%clk 0:00:23]}  Rgb4+ {[%clk 0:00:16]} 40. Kc3 {[%clk 0:00:24]}  Rh4 {[%clk 0:00:07]} 41. Nxf7 {[%clk 0:00:23]}  Rxh5 {[%clk 0:00:07]} 42. Nd6 {[%clk 0:00:22]}  Ra3+ {[%clk 0:00:05]} 43. Kd4 {[%clk 0:00:20]}  Rh4+ {[%clk 0:00:05]} 44. Ke5 {[%clk 0:00:13]}  Rxd3 {[%clk 0:00:05]} 45. f7 {[%clk 0:00:14]}  Rf3 {[%clk 0:00:05]} 46. Nd4 {[%clk 0:00:14]}  Rxf7 {[%clk 0:00:04]} 47. Nxf7 {[%clk 0:00:13]}  Re4+ {[%clk 0:00:05]} 48. Kd6 {[%clk 0:00:13]}  Rxd4 {[%clk 0:00:06]} 49. Nd8 {[%clk 0:00:11]}  a5 {[%clk 0:00:05]} 50. Nxe6 {[%clk 0:00:11]}  Rd1 {[%clk 0:00:04]} 51. Nc7 {[%clk 0:00:11]}  Kb6 {[%clk 0:00:04]} 52. Na8+ {[%clk 0:00:11]}  Kb5 {[%clk 0:00:04]} 53. Nc7+ {[%clk 0:00:12]}  Kb4 {[%clk 0:00:04]} 54. Ke5 {[%clk 0:00:10]}  a4 {[%clk 0:00:04]} 55. Nxd5+ {[%clk 0:00:08]}  Rxd5+ {[%clk 0:00:04]} 56. Kxd5 {[%clk 0:00:09]} 0-1


[Site "https://www.chess.com"]

[Event "Titled Tuesday Blitz June 28 Early 2022"]
[White "Cherniaiev, Tykhon"]
[Black "So, Wesley"]
[WhiteFideId "14182360"]
[BlackFideId "5202213"]
[WhiteElo "2289"]
[BlackElo "2742"]
[Result "0-1"]
[Round "10"]
[TimeControl "180+1"]
[Date "2022.06.28"]
[WhiteClock "0:00:55"]
[BlackClock "0:00:01"]

1. Nf3 {[%clk 0:03:00]}  d5 {[%clk 0:02:59]} 2. d4 {[%clk 0:03:01]}  Nf6 {[%clk 0:02:59]} 3. c4 {[%clk 0:03:01]}  e6 {[%clk 0:02:59]} 4. g3 {[%clk 0:03:01]}  Bb4+ {[%clk 0:02:51]} 5. Bd2 {[%clk 0:03:01]}  Be7 {[%clk 0:02:51]} 6. Bg2 {[%clk 0:03:00]}  Nbd7 {[%clk 0:02:51]} 7. Qc2 {[%clk 0:02:59]}  O-O {[%clk 0:02:49]} 8. O-O {[%clk 0:03:00]}  c6 {[%clk 0:02:49]} 9. b3 {[%clk 0:03:00]}  b6 {[%clk 0:02:44]} 10. Nc3 {[%clk 0:02:59]}  Ba6 {[%clk 0:02:41]} 11. cxd5 {[%clk 0:02:57]}  cxd5 {[%clk 0:02:41]} 12. Qb2 {[%clk 0:02:56]}  Ne4 {[%clk 0:02:32]} 13. Nxe4 {[%clk 0:02:48]}  dxe4 {[%clk 0:02:33]} 14. Ne5 {[%clk 0:02:48]}  Nxe5 {[%clk 0:02:32]} 15. dxe5 {[%clk 0:02:49]}  Bxe2 {[%clk 0:02:32]} 16. Bxe4 {[%clk 0:02:42]}  Bxf1 {[%clk 0:02:29]} 17. Bxa8 {[%clk 0:02:41]}  Qxa8 {[%clk 0:02:30]} 18. Rxf1 {[%clk 0:02:41]}  Rd8 {[%clk 0:02:28]} 19. Be3 {[%clk 0:02:23]}  h5 {[%clk 0:02:20]} 20. Qc2 {[%clk 0:02:08]}  h4 {[%clk 0:02:12]} 21. Rd1 {[%clk 0:01:59]}  h3 {[%clk 0:01:54]} 22. Rxd8+ {[%clk 0:01:56]}  Bxd8 {[%clk 0:01:55]} 23. f4 {[%clk 0:01:53]}  Be7 {[%clk 0:01:54]} 24. Qe2 {[%clk 0:01:03]}  Qe4 {[%clk 0:01:50]} 25. Kf1 {[%clk 0:01:00]}  Qh1+ {[%clk 0:01:50]} 26. Kf2 {[%clk 0:00:56]}  Qxh2+ {[%clk 0:01:48]} 27. Ke1 {[%clk 0:00:48]}  Qxe2+ {[%clk 0:01:49]} 28. Kxe2 {[%clk 0:00:49]}  h2 {[%clk 0:01:50]} 29. Kf3 {[%clk 0:00:49]}  h1=Q+ {[%clk 0:01:40]} 30. Kg4 {[%clk 0:00:49]}  g6 {[%clk 0:01:26]} 31. Bd2 {[%clk 0:00:48]}  Qd1+ {[%clk 0:01:23]} 32. Kh3 {[%clk 0:00:48]}  Qxd2 {[%clk 0:01:24]} 33. Kg4 {[%clk 0:00:48]}  Qxa2 {[%clk 0:01:24]} 34. Kh3 {[%clk 0:00:47]}  Qxb3 {[%clk 0:01:24]} 35. Kg4 {[%clk 0:00:47]}  a5 {[%clk 0:01:25]} 36. Kh3 {[%clk 0:00:48]}  a4 {[%clk 0:01:25]} 37. Kg4 {[%clk 0:00:48]}  a3 {[%clk 0:01:26]} 38. Kh3 {[%clk 0:00:49]}  a2 {[%clk 0:01:27]} 39. Kg4 {[%clk 0:00:50]}  a1=Q {[%clk 0:01:27]} 40. Kh3 {[%clk 0:00:50]}  Qd3 {[%clk 0:01:27]} 41. Kg4 {[%clk 0:00:51]}  b5 {[%clk 0:01:28]} 42. Kh3 {[%clk 0:00:51]}  b4 {[%clk 0:01:28]} 43. f5 {[%clk 0:00:52]}  Qxf5+ {[%clk 0:01:23]} 44. g4 {[%clk 0:00:52]}  Qe4 {[%clk 0:01:19]} 45. g5 {[%clk 0:00:52]}  b3 {[%clk 0:01:19]} 46. Kg3 {[%clk 0:00:52]}  b2 {[%clk 0:01:20]} 47. Kh3 {[%clk 0:00:53]}  b1=Q {[%clk 0:01:21]} 48. Kg3 {[%clk 0:00:54]}  Qaxe5+ {[%clk 0:01:20]} 49. Kh3 {[%clk 0:00:54]}  Q5f5+ {[%clk 0:01:20]} 50. Kg3 {[%clk 0:00:54]}  Qxg5+ {[%clk 0:01:20]} 51. Kh3 {[%clk 0:00:55]}  Qbh1# {[%clk 0:00:01]} 0-1


[Site "https://www.chess.com"]

[Event "Titled Tuesday Blitz June 28 Early 2022"]
[White "Coto Mederos, Michel"]
[Black "Sarkar, Justin"]
[WhiteFideId "3508528"]
[BlackFideId "2010011"]
[WhiteElo "2427"]
[BlackElo "2020"]
[Result "1-0"]
[Round "10"]
[TimeControl "180+1"]
[Date "2022.06.28"]
[WhiteClock "0:01:12"]
[BlackClock "0:00:03"]

1. c4 {[%clk 0:03:00]}  a6 {[%clk 0:02:58]} 2. Nc3 {[%clk 0:03:00]}  e6 {[%clk 0:02:57]} 3. e4 {[%clk 0:02:59]}  c5 {[%clk 0:02:50]} 4. Nf3 {[%clk 0:02:55]}  Nc6 {[%clk 0:02:26]} 5. Be2 {[%clk 0:02:54]}  e5 {[%clk 0:02:13]} 6. O-O {[%clk 0:02:50]}  d6 {[%clk 0:02:12]} 7. d3 {[%clk 0:02:42]}  g6 {[%clk 0:02:09]} 8. Ne1 {[%clk 0:02:36]}  Bg7 {[%clk 0:02:05]} 9. Bg4 {[%clk 0:02:31]}  f5 {[%clk 0:01:32]} 10. exf5 {[%clk 0:02:25]}  gxf5 {[%clk 0:01:33]} 11. Bh5+ {[%clk 0:02:25]}  Kf8 {[%clk 0:01:32]} 12. f4 {[%clk 0:02:06]}  Nf6 {[%clk 0:01:28]} 13. fxe5 {[%clk 0:02:04]}  dxe5 {[%clk 0:01:20]} 14. Bg5 {[%clk 0:02:01]}  Qd4+ {[%clk 0:00:20]} 15. Kh1 {[%clk 0:01:57]}  Nxh5 {[%clk 0:00:19]} 16. Qxh5 {[%clk 0:01:55]}  Be6 {[%clk 0:00:19]} 17. Nd5 {[%clk 0:01:44]}  Bxd5 {[%clk 0:00:08]} 18. Rxf5+ {[%clk 0:01:41]}  Kg8 {[%clk 0:00:08]} 19. cxd5 {[%clk 0:01:38]}  Qxd5 {[%clk 0:00:08]} 20. Nc2 {[%clk 0:01:22]}  h6 {[%clk 0:00:03]} 21. Ne3 {[%clk 0:01:11]}  Qe6 {[%clk 0:00:03]} 22. Rf6 {[%clk 0:01:12]} 1-0


[Site "https://www.chess.com"]

[Event "Titled Tuesday Blitz June 28 Early 2022"]
[White "Daeschler, Florian"]
[Black "Carrasco Miranda, Andres"]
[WhiteFideId "20678193"]
[BlackFideId "3405990"]
[WhiteElo "2221"]
[BlackElo "2177"]
[Result "0-1"]
[Round "10"]
[TimeControl "180+1"]
[Date "2022.06.28"]
[WhiteClock "0:01:11"]
[BlackClock "0:01:25"]

1. e4 {[%clk 0:03:00]}  c5 {[%clk 0:02:54]} 2. Nc3 {[%clk 0:02:59]}  d6 {[%clk 0:02:53]} 3. d3 {[%clk 0:02:59]}  g6 {[%clk 0:02:52]} 4. Be3 {[%clk 0:02:58]}  Bg7 {[%clk 0:02:52]} 5. g3 {[%clk 0:02:58]}  Nc6 {[%clk 0:02:52]} 6. Bg2 {[%clk 0:02:57]}  Rb8 {[%clk 0:02:48]} 7. Qd2 {[%clk 0:02:55]}  b5 {[%clk 0:02:47]} 8. Nge2 {[%clk 0:02:51]}  Nd4 {[%clk 0:02:44]} 9. Nc1 {[%clk 0:02:49]}  e6 {[%clk 0:02:32]} 10. Nd1 {[%clk 0:02:48]}  b4 {[%clk 0:02:26]} 11. c3 {[%clk 0:02:46]}  bxc3 {[%clk 0:02:26]} 12. bxc3 {[%clk 0:02:47]}  Nc6 {[%clk 0:02:26]} 13. O-O {[%clk 0:02:45]}  Nge7 {[%clk 0:02:24]} 14. Bh6 {[%clk 0:02:43]}  O-O {[%clk 0:02:24]} 15. Bxg7 {[%clk 0:02:43]}  Kxg7 {[%clk 0:02:25]} 16. Ne3 {[%clk 0:02:41]}  h5 {[%clk 0:02:20]} 17. f4 {[%clk 0:02:35]}  Qb6 {[%clk 0:02:15]} 18. Rf2 {[%clk 0:02:30]}  Ba6 {[%clk 0:02:07]} 19. g4 {[%clk 0:02:23]}  hxg4 {[%clk 0:02:04]} 20. Nxg4 {[%clk 0:02:24]}  Rh8 {[%clk 0:02:05]} 21. f5 {[%clk 0:01:33]}  exf5 {[%clk 0:01:52]} 22. exf5 {[%clk 0:01:32]}  Nxf5 {[%clk 0:01:52]} 23. Rxf5 {[%clk 0:01:30]}  gxf5 {[%clk 0:01:53]} 24. Qg5+ {[%clk 0:01:30]}  Kf8 {[%clk 0:01:53]} 25. Qf6 {[%clk 0:01:20]}  Rg8 {[%clk 0:01:37]} 26. Qxd6+ {[%clk 0:01:16]}  Ne7 {[%clk 0:01:37]} 27. Qxb6 {[%clk 0:01:10]}  Rxb6 {[%clk 0:01:36]} 28. Nf6 {[%clk 0:01:11]}  Rxf6 {[%clk 0:01:25]} 0-1


[Site "https://www.chess.com"]

[Event "Titled Tuesday Blitz June 28 Early 2022"]
[White "Dixit, Arun"]
[Black "Kapitsyn, Mark"]
[WhiteFideId "30937671"]
[BlackFideId "4116240"]
[WhiteElo "2366"]
[BlackElo "2298"]
[Result "1-0"]
[Round "10"]
[TimeControl "180+1"]
[Date "2022.06.28"]
[WhiteClock "0:00:08"]
[BlackClock "0:00:01"]

1. d4 {[%clk 0:03:00]}  Nf6 {[%clk 0:02:58]} 2. c4 {[%clk 0:02:56]}  e6 {[%clk 0:02:58]} 3. Nc3 {[%clk 0:02:55]}  Bb4 {[%clk 0:02:58]} 4. e3 {[%clk 0:02:54]}  Bxc3+ {[%clk 0:02:59]} 5. bxc3 {[%clk 0:02:53]}  c5 {[%clk 0:02:59]} 6. Nf3 {[%clk 0:02:53]}  d6 {[%clk 0:02:59]} 7. Bd3 {[%clk 0:02:53]}  Nc6 {[%clk 0:02:58]} 8. O-O {[%clk 0:02:52]}  h6 {[%clk 0:02:57]} 9. e4 {[%clk 0:02:52]}  e5 {[%clk 0:02:57]} 10. Re1 {[%clk 0:02:50]}  O-O {[%clk 0:02:54]} 11. a4 {[%clk 0:02:47]}  Bg4 {[%clk 0:02:49]} 12. d5 {[%clk 0:02:42]}  Na5 {[%clk 0:02:26]} 13. h3 {[%clk 0:02:36]}  Bc8 {[%clk 0:02:15]} 14. Rb1 {[%clk 0:02:25]}  b6 {[%clk 0:02:15]} 15. g4 {[%clk 0:02:17]}  Nh7 {[%clk 0:02:08]} 16. Be3 {[%clk 0:02:10]}  Ba6 {[%clk 0:02:05]} 17. Qe2 {[%clk 0:01:57]}  Qf6 {[%clk 0:02:05]} 18. Kg2 {[%clk 0:01:48]}  Rfe8 {[%clk 0:01:27]} 19. h4 {[%clk 0:01:19]}  h5 {[%clk 0:01:03]} 20. gxh5 {[%clk 0:01:08]}  Bc8 {[%clk 0:01:00]} 21. Ng5 {[%clk 0:01:04]}  Qe7 {[%clk 0:00:46]} 22. Rg1 {[%clk 0:00:33]}  f6 {[%clk 0:00:32]} 23. Nxh7 {[%clk 0:00:32]}  Kxh7 {[%clk 0:00:33]} 24. Kf1 {[%clk 0:00:28]}  Bh3+ {[%clk 0:00:21]} 25. Ke1 {[%clk 0:00:28]}  Qd7 {[%clk 0:00:16]} 26. h6 {[%clk 0:00:27]}  g6 {[%clk 0:00:15]} 27. Qf3 {[%clk 0:00:23]}  Rf8 {[%clk 0:00:12]} 28. Rg3 {[%clk 0:00:21]}  f5 {[%clk 0:00:11]} 29. h5 {[%clk 0:00:15]}  gxh5 {[%clk 0:00:07]} 30. Rxh3 {[%clk 0:00:10]}  f4 {[%clk 0:00:04]} 31. Bd2 {[%clk 0:00:10]}  Rg8 {[%clk 0:00:05]} 32. Kd1 {[%clk 0:00:08]}  Rg1+ {[%clk 0:00:03]} 33. Ke2 {[%clk 0:00:06]}  Rxb1 {[%clk 0:00:03]} 34. Bxb1 {[%clk 0:00:07]}  Rg8 {[%clk 0:00:03]} 35. Qxh5 {[%clk 0:00:07]}  Nxc4 {[%clk 0:00:01]} 36. Qf5+ {[%clk 0:00:07]}  Qxf5 {[%clk 0:00:01]} 37. exf5 {[%clk 0:00:08]} 1-0


[Site "https://www.chess.com"]